Workbook

Sheet BASS
AA1: A
A2: الأسبوع الثاني | D2: تاريخ اليوم | E2: 24 / 7 | J2: 1 | AA2: 26 / 6
B3: التعداد الاجمالي | C3: =MAX(A5:A1103) -> 831 | H3: choose here | J3: 2 | AA3: 27 / 6
A4: Studiante Name | E4: النوع | J4: 3 | AA4: 28 / 6
A5: =IF(B5="","",MAX($A$4:A4)+1) -> 1 | B5: 1120 | C5: =TOUT!D5 -> Name1 | D5: 1 | E5: 1 | J5: 4 | AA5: 29 / 6
A6: =IF(B6="","",MAX($A$4:A5)+1) -> 2 | B6: 1124 | C6: =TOUT!D6 -> Name2 | D6: 3 | J6: 5 | AA6: 2 / 7
A7: =IF(B7="","",MAX($A$4:A6)+1) -> 3 | B7: 1122 | C7: =TOUT!D7 -> Name3 | D7: ق | AA7: 3 / 7
A8: =IF(B8="","",MAX($A$4:A7)+1) -> 4 | B8: 1123 | C8: =TOUT!D8 -> Name4 | D8: H | E8: 4 | AA8: 4 / 7
A9: =IF(B9="","",MAX($A$4:A8)+1) -> 5 | B9: 1124 | C9: =TOUT!D9 -> Name5 | AA9: 5 / 7
A10: =IF(B10="","",MAX($A$4:A9)+1) -> 6 | B10: 1125 | C10: =TOUT!D10 -> Name6 | D10: غ | AA10: 6 / 7
A11: =IF(B11="","",MAX($A$4:A10)+1) -> 7 | B11: 1126 | C11: =TOUT!D11 -> Name7 | D11: غ | AA11: 9 / 7
A12: =IF(B12="","",MAX($A$4:A11)+1) -> 8 | B12: 1127 | C12: =TOUT!D12 -> Name8 | D12: غ | AA12: 10 / 7
A13: =IF(B13="","",MAX($A$4:A12)+1) -> 9 | B13: 1128 | C13: =TOUT!D13 -> Name9 | D13: غ | AA13: 11 / 7
A14: =IF(B14="","",MAX($A$4:A13)+1) -> 10 | B14: 1129 | C14: =TOUT!D14 -> Name10 | D14: غ | AA14: 12 / 7
A15: =IF(B15="","",MAX($A$4:A14)+1) -> 11 | B15: 1130 | C15: =TOUT!D15 -> Name11 | D15: غ | AA15: 13 / 7
A16: =IF(B16="","",MAX($A$4:A15)+1) -> 12 | B16: 1131 | C16: =TOUT!D16 -> Name12 | D16: غ | AA16: 16 / 7
A17: =IF(B17="","",MAX($A$4:A16)+1) -> 13 | B17: 1132 | C17: =TOUT!D17 -> Name13 | D17: غ | AA17: 17 / 7
A18: =IF(B18="","",MAX($A$4:A17)+1) -> 14 | B18: 1133 | C18: =TOUT!D18 -> Name14 | D18: غ | AA18: 18 / 7
A19: =IF(B19="","",MAX($A$4:A18)+1) -> 15 | B19: 1134 | C19: =TOUT!D19 -> Name15 | D19: غ | AA19: 19 / 7
A20: =IF(B20="","",MAX($A$4:A19)+1) -> 16 | B20: 1135 | C20: =TOUT!D20 -> Name16 | D20: غ | AA20: 20 / 7
A21: =IF(B21="","",MAX($A$4:A20)+1) -> 17 | B21: 1136 | C21: =TOUT!D21 -> Name17 | D21: غ | AA21: 23 / 7
A22: =IF(B22="","",MAX($A$4:A21)+1) -> 18 | B22: 1137 | C22: =TOUT!D22 -> Name18 | D22: غ | AA22: 24 / 7
A23: =IF(B23="","",MAX($A$4:A22)+1) -> 19 | B23: 1138 | C23: =TOUT!D23 -> Name19 | D23: غ | AA23: 25 / 7
A24: =IF(B24="","",MAX($A$4:A23)+1) -> 20 | B24: 1139 | C24: =TOUT!D24 -> Name20 | D24: غ | AA24: 26 / 7
A25: =IF(B25="","",MAX($A$4:A24)+1) -> 21 | B25: 1140 | C25: =TOUT!D25 -> Name21 | D25: غ | AA25: 27 / 7
A26: =IF(B26="","",MAX($A$4:A25)+1) -> 22 | B26: 1141 | C26: =TOUT!D26 -> Name22 | D26: غ | AA26: 1 / 8
A27: =IF(B27="","",MAX($A$4:A26)+1) -> 23 | B27: 1142 | C27: =TOUT!D27 -> Name23 | D27: غ | AA27: 2 / 8
A28: =IF(B28="","",MAX($A$4:A27)+1) -> 24 | B28: 1540 | C28: =TOUT!D425 -> Name421 | D28: غ
A29: =IF(B29="","",MAX($A$4:A28)+1) -> 25 | B29: 1541 | C29: =TOUT!D426 -> Name422 | D29: غ
A30: =IF(B30="","",MAX($A$4:A29)+1) -> 26 | B30: 1542 | C30: =TOUT!D427 -> Name423 | D30: غ
A31: =IF(B31="","",MAX($A$4:A30)+1) -> 27 | B31: 1543 | C31: =TOUT!D428 -> Name424 | D31: غ
A32: =IF(B32="","",MAX($A$4:A31)+1) -> 28 | B32: 1544 | C32: =TOUT!D429 -> Name425 | D32: غ
A33: =IF(B33="","",MAX($A$4:A32)+1) -> 29 | B33: 1545 | C33: =TOUT!D430 -> Name426 | D33: غ
A34: =IF(B34="","",MAX($A$4:A33)+1) -> 30 | B34: 1546 | C34: =TOUT!D431 -> Name427 | D34: غ
A35: =IF(B35="","",MAX($A$4:A34)+1) -> 31 | B35: 1547 | C35: =TOUT!D432 -> Name428 | D35: غ
A36: =IF(B36="","",MAX($A$4:A35)+1) -> 32 | B36: 1548 | C36: =TOUT!D433 -> Name429 | D36: غ
A37: =IF(B37="","",MAX($A$4:A36)+1) -> 33 | B37: 1549 | C37: =TOUT!D434 -> Name430 | D37: غ
A38: =IF(B38="","",MAX($A$4:A37)+1) -> 34 | B38: 1550 | C38: =TOUT!D435 -> Name431 | D38: غ
A39: =IF(B39="","",MAX($A$4:A38)+1) -> 35 | B39: 1551 | C39: =TOUT!D436 -> Name432 | D39: غ
A40: =IF(B40="","",MAX($A$4:A39)+1) -> 36 | B40: 1552 | C40: =TOUT!D437 -> Name433 | D40: غ
A41: =IF(B41="","",MAX($A$4:A40)+1) -> 37 | B41: 1553 | C41: =TOUT!D438 -> Name434 | D41: غ
A42: =IF(B42="","",MAX($A$4:A41)+1) -> 38 | B42: 1554 | C42: =TOUT!D439 -> Name435 | D42: غ
A43: =IF(B43="","",MAX($A$4:A42)+1) -> 39 | B43: 1555 | C43: =TOUT!D440 -> Name436 | D43: غ
A44: =IF(B44="","",MAX($A$4:A43)+1) -> 40 | B44: 1556 | C44: =TOUT!D441 -> Name437 | D44: غ
A45: =IF(B45="","",MAX($A$4:A44)+1) -> 41 | B45: 1557 | C45: =TOUT!D442 -> Name438 | D45: غ
A46: =IF(B46="","",MAX($A$4:A45)+1) -> 42 | B46: 1558 | C46: =TOUT!D443 -> Name439 | D46: غ
A47: =IF(B47="","",MAX($A$4:A46)+1) -> 43 | B47: 1559 | C47: =TOUT!D444 -> Name440 | D47: غ
A48: =IF(B48="","",MAX($A$4:A47)+1) -> 44 | B48: 1560 | C48: =TOUT!D445 -> Name441 | D48: غ
A49: =IF(B49="","",MAX($A$4:A48)+1) -> 45 | B49: 1561 | C49: =TOUT!D446 -> Name442 | D49: غ
A50: =IF(B50="","",MAX($A$4:A49)+1) -> 46 | B50: 1562 | C50: =TOUT!D447 -> Name443 | D50: غ
A51: =IF(B51="","",MAX($A$4:A50)+1) -> 47 | B51: 1563 | C51: =TOUT!D448 -> Name444 | D51: غ
A52: =IF(B52="","",MAX($A$4:A51)+1) -> 48 | B52: 1564 | C52: =TOUT!D449 -> Name445 | D52: غ
A53: =IF(B53="","",MAX($A$4:A52)+1) -> 49 | B53: 1565 | C53: =TOUT!D450 -> Name446 | D53: غ
A54: =IF(B54="","",MAX($A$4:A53)+1) -> 50 | B54: 1566 | C54: =TOUT!D451 -> Name447 | D54: غ
A55: =IF(B55="","",MAX($A$4:A54)+1) -> 51 | B55: 1567 | C55: =TOUT!D452 -> Name448 | D55: غ
A56: =IF(B56="","",MAX($A$4:A55)+1) -> 52 | B56: 1568 | C56: =TOUT!D453 -> Name449 | D56: غ
A57: =IF(B57="","",MAX($A$4:A56)+1) -> 53 | B57: 1569 | C57: =TOUT!D454 -> Name450 | D57: غ
A58: =IF(B58="","",MAX($A$4:A57)+1) -> 54 | B58: 1570 | C58: =TOUT!D455 -> Name451 | D58: غ
A59: =IF(B59="","",MAX($A$4:A58)+1) -> 55 | B59: 1571 | C59: =TOUT!D456 -> Name452 | D59: غ
A60: =IF(B60="","",MAX($A$4:A59)+1) -> 56 | B60: 1572 | C60: =TOUT!D457 -> Name453 | D60: غ
A61: =IF(B61="","",MAX($A$4:A60)+1) -> 57 | B61: 1573 | C61: =TOUT!D458 -> Name454 | D61: غ
A62: =IF(B62="","",MAX($A$4:A61)+1) -> 58 | B62: 1574 | C62: =TOUT!D459 -> Name455 | D62: غ
A63: =IF(B63="","",MAX($A$4:A62)+1) -> 59 | B63: 1575 | C63: =TOUT!D460 -> Name456 | D63: غ
A64: =IF(B64="","",MAX($A$4:A63)+1) -> 60 | B64: 1576 | C64: =TOUT!D461 -> Name457 | D64: غ
A65: =IF(B65="","",MAX($A$4:A64)+1) -> 61 | B65: 1577 | C65: =TOUT!D462 -> Name458 | D65: غ
A66: =IF(B66="","",MAX($A$4:A65)+1) -> 62 | B66: 1578 | C66: =TOUT!D463 -> Name459 | D66: غ
A67: =IF(B67="","",MAX($A$4:A66)+1) -> 63 | B67: 1579 | C67: =TOUT!D464 -> Name460 | D67: غ
A68: =IF(B68="","",MAX($A$4:A67)+1) -> 64 | B68: 1580 | C68: =TOUT!D465 -> Name461 | D68: غ
A69: =IF(B69="","",MAX($A$4:A68)+1) -> 65 | B69: 1581 | C69: =TOUT!D466 -> Name462 | D69: غ
A70: =IF(B70="","",MAX($A$4:A69)+1) -> 66 | B70: 1582 | C70: =TOUT!D467 -> Name463 | D70: غ
A71: =IF(B71="","",MAX($A$4:A70)+1) -> 67 | B71: 1583 | C71: =TOUT!D468 -> Name464 | D71: غ
A72: =IF(B72="","",MAX($A$4:A71)+1) -> 68 | B72: 1584 | C72: =TOUT!D469 -> Name465 | D72: غ
A73: =IF(B73="","",MAX($A$4:A72)+1) -> 69 | B73: 1585 | C73: =TOUT!D470 -> Name466 | D73: غ
A74: =IF(B74="","",MAX($A$4:A73)+1) -> 70 | B74: 1586 | C74: =TOUT!D471 -> Name467 | D74: غ
A75: =IF(B75="","",MAX($A$4:A74)+1) -> 71 | B75: 1587 | C75: =TOUT!D472 -> Name468 | D75: غ
A76: =IF(B76="","",MAX($A$4:A75)+1) -> 72 | B76: 1588 | C76: =TOUT!D473 -> Name469 | D76: غ
A77: =IF(B77="","",MAX($A$4:A76)+1) -> 73 | B77: 1589 | C77: =TOUT!D474 -> Name470 | D77: غ
A78: =IF(B78="","",MAX($A$4:A77)+1) -> 74 | B78: 1590 | C78: =TOUT!D475 -> Name471 | D78: غ
A79: =IF(B79="","",MAX($A$4:A78)+1) -> 75 | B79: 1591 | C79: =TOUT!D476 -> Name472 | D79: غ
A80: =IF(B80="","",MAX($A$4:A79)+1) -> 76 | B80: 1592 | C80: =TOUT!D477 -> Name473 | D80: غ
A81: =IF(B81="","",MAX($A$4:A80)+1) -> 77 | B81: 1593 | C81: =TOUT!D478 -> Name474 | D81: غ
A82: =IF(B82="","",MAX($A$4:A81)+1) -> 78 | B82: 1594 | C82: =TOUT!D479 -> Name475 | D82: غ
A83: =IF(B83="","",MAX($A$4:A82)+1) -> 79 | B83: 1595 | C83: =TOUT!D480 -> Name476 | D83: غ
A84: =IF(B84="","",MAX($A$4:A83)+1) -> 80 | B84: 1596 | C84: =TOUT!D481 -> Name477 | D84: غ
A85: =IF(B85="","",MAX($A$4:A84)+1) -> 81 | B85: 1597 | C85: =TOUT!D482 -> Name478 | D85: غ
A86: =IF(B86="","",MAX($A$4:A85)+1) -> 82 | B86: 1598 | C86: =TOUT!D483 -> Name479 | D86: غ
A87: =IF(B87="","",MAX($A$4:A86)+1) -> 83 | B87: 1599 | C87: =TOUT!D484 -> Name480 | D87: غ
A88: =IF(B88="","",MAX($A$4:A87)+1) -> 84 | B88: 1600 | C88: =TOUT!D485 -> Name481 | D88: غ
A89: =IF(B89="","",MAX($A$4:A88)+1) -> 85 | B89: 1601 | C89: =TOUT!D486 -> Name482 | D89: غ
A90: =IF(B90="","",MAX($A$4:A89)+1) -> 86 | B90: 1602 | C90: =TOUT!D487 -> Name483 | D90: غ
A91: =IF(B91="","",MAX($A$4:A90)+1) -> 87 | B91: 1603 | C91: =TOUT!D488 -> Name484 | D91: غ
A92: =IF(B92="","",MAX($A$4:A91)+1) -> 88 | B92: 1604 | C92: =TOUT!D489 -> Name485 | D92: غ
A93: =IF(B93="","",MAX($A$4:A92)+1) -> 89 | B93: 1605 | C93: =TOUT!D490 -> Name486 | D93: غ
A94: =IF(B94="","",MAX($A$4:A93)+1) -> 90 | B94: 1606 | C94: =TOUT!D491 -> Name487 | D94: غ
A95: =IF(B95="","",MAX($A$4:A94)+1) -> 91 | B95: 1607 | C95: =TOUT!D492 -> Name488 | D95: غ
A96: =IF(B96="","",MAX($A$4:A95)+1) -> 92 | B96: 1608 | C96: =TOUT!D493 -> Name489 | D96: غ
A97: =IF(B97="","",MAX($A$4:A96)+1) -> 93 | B97: 1609 | C97: =TOUT!D494 -> Name490 | D97: غ
A98: =IF(B98="","",MAX($A$4:A97)+1) -> 94 | B98: 1610 | C98: =TOUT!D495 -> Name491 | D98: غ
A99: =IF(B99="","",MAX($A$4:A98)+1) -> 95 | B99: 1611 | C99: =TOUT!D496 -> Name492 | D99: غ
A100: =IF(B100="","",MAX($A$4:A99)+1) -> 96 | B100: 1612 | C100: =TOUT!D497 -> Name493 | D100: غ
A101: =IF(B101="","",MAX($A$4:A100)+1) -> 97 | B101: 1613 | C101: =TOUT!D498 -> Name494 | D101: غ
A102: =IF(B102="","",MAX($A$4:A101)+1) -> 98 | B102: 1614 | C102: =TOUT!D499 -> Name495 | D102: غ
A103: =IF(B103="","",MAX($A$4:A102)+1) -> 99 | B103: 1615 | C103: =TOUT!D500 -> Name496 | D103: غ
A104: =IF(B104="","",MAX($A$4:A103)+1) -> 100 | B104: 1616 | C104: =TOUT!D501 -> Name497 | D104: غ
A105: =IF(B105="","",MAX($A$4:A104)+1) -> 101 | B105: 1617 | C105: =TOUT!D502 -> Name498 | D105: غ
A106: =IF(B106="","",MAX($A$4:A105)+1) -> 102 | B106: 1618 | C106: =TOUT!D503 -> Name499 | D106: غ
A107: =IF(B107="","",MAX($A$4:A106)+1) -> 103 | B107: 1619 | C107: =TOUT!D504 -> Name500 | D107: غ
A108: =IF(B108="","",MAX($A$4:A107)+1) -> 104 | B108: 1620 | C108: =TOUT!D505 -> Name501 | D108: غ
A109: =IF(B109="","",MAX($A$4:A108)+1) -> 105 | B109: 1621 | C109: =TOUT!D506 -> Name502 | D109: غ
A110: =IF(B110="","",MAX($A$4:A109)+1) -> 106 | B110: 1622 | C110: =TOUT!D507 -> Name503 | D110: غ
A111: =IF(B111="","",MAX($A$4:A110)+1) -> 107 | B111: 1623 | C111: =TOUT!D508 -> Name504 | D111: غ
A112: =IF(B112="","",MAX($A$4:A111)+1) -> 108 | B112: 1624 | C112: =TOUT!D509 -> Name505 | D112: غ
A113: =IF(B113="","",MAX($A$4:A112)+1) -> 109 | B113: 1625 | C113: =TOUT!D510 -> Name506 | D113: غ
A114: =IF(B114="","",MAX($A$4:A113)+1) -> 110 | B114: 1626 | C114: =TOUT!D511 -> Name507 | D114: غ
A115: =IF(B115="","",MAX($A$4:A114)+1) -> 111 | B115: 1627 | C115: =TOUT!D512 -> Name508 | D115: غ
A116: =IF(B116="","",MAX($A$4:A115)+1) -> 112 | B116: 1628 | C116: =TOUT!D513 -> Name509 | D116: غ
A117: =IF(B117="","",MAX($A$4:A116)+1) -> 113 | B117: 1629 | C117: =TOUT!D514 -> Name510 | D117: غ
A118: =IF(B118="","",MAX($A$4:A117)+1) -> 114 | B118: 1630 | C118: =TOUT!D515 -> Name511 | D118: غ
A119: =IF(B119="","",MAX($A$4:A118)+1) -> 115 | B119: 1631 | C119: =TOUT!D516 -> Name512 | D119: غ
A120: =IF(B120="","",MAX($A$4:A119)+1) -> 116 | B120: 1632 | C120: =TOUT!D517 -> Name513 | D120: غ
A121: =IF(B121="","",MAX($A$4:A120)+1) -> 117 | B121: 1633 | C121: =TOUT!D518 -> Name514 | D121: غ
A122: =IF(B122="","",MAX($A$4:A121)+1) -> 118 | B122: 1634 | C122: =TOUT!D519 -> Name515 | D122: غ
A123: =IF(B123="","",MAX($A$4:A122)+1) -> 119 | B123: 1635 | C123: =TOUT!D520 -> Name516 | D123: غ
A124: =IF(B124="","",MAX($A$4:A123)+1) -> 120 | B124: 1636 | C124: =TOUT!D521 -> Name517 | D124: غ
A125: =IF(B125="","",MAX($A$4:A124)+1) -> 121 | B125: 1637 | C125: =TOUT!D522 -> Name518 | D125: غ
A126: =IF(B126="","",MAX($A$4:A125)+1) -> 122 | B126: 1638 | C126: =TOUT!D523 -> Name519 | D126: غ
A127: =IF(B127="","",MAX($A$4:A126)+1) -> 123 | B127: 1639 | C127: =TOUT!D524 -> Name520 | D127: غ
A128: =IF(B128="","",MAX($A$4:A127)+1) -> 124 | B128: 1640 | C128: =TOUT!D525 -> Name521 | D128: غ
A129: =IF(B129="","",MAX($A$4:A128)+1) -> 125 | B129: 1641 | C129: =TOUT!D526 -> Name522 | D129: غ
A130: =IF(B130="","",MAX($A$4:A129)+1) -> 126 | B130: 1642 | C130: =TOUT!D527 -> Name523 | D130: غ
A131: =IF(B131="","",MAX($A$4:A130)+1) -> 127 | B131: 1643 | C131: =TOUT!D528 -> Name524 | D131: غ
A132: =IF(B132="","",MAX($A$4:A131)+1) -> 128 | B132: 1644 | C132: =TOUT!D529 -> Name525 | D132: غ
A133: =IF(B133="","",MAX($A$4:A132)+1) -> 129 | B133: 1645 | C133: =TOUT!D530 -> Name526 | D133: غ
A134: =IF(B134="","",MAX($A$4:A133)+1) -> 130 | B134: 1646 | C134: =TOUT!D531 -> Name527 | D134: غ
A135: =IF(B135="","",MAX($A$4:A134)+1) -> 131 | B135: 1647 | C135: =TOUT!D532 -> Name528 | D135: غ
A136: =IF(B136="","",MAX($A$4:A135)+1) -> 132 | B136: 1648 | C136: =TOUT!D533 -> Name529 | D136: غ
A137: =IF(B137="","",MAX($A$4:A136)+1) -> 133 | B137: 1649 | C137: =TOUT!D534 -> Name530 | D137: غ
A138: =IF(B138="","",MAX($A$4:A137)+1) -> 134 | B138: 1650 | C138: =TOUT!D535 -> Name531 | D138: غ
A139: =IF(B139="","",MAX($A$4:A138)+1) -> 135 | B139: 1651 | C139: =TOUT!D536 -> Name532 | D139: غ
A140: =IF(B140="","",MAX($A$4:A139)+1) -> 136 | B140: 1652 | C140: =TOUT!D537 -> Name533 | D140: غ
A141: =IF(B141="","",MAX($A$4:A140)+1) -> 137 | B141: 1653 | C141: =TOUT!D538 -> Name534 | D141: غ
A142: =IF(B142="","",MAX($A$4:A141)+1) -> 138 | B142: 1654 | C142: =TOUT!D539 -> Name535 | D142: غ
A143: =IF(B143="","",MAX($A$4:A142)+1) -> 139 | B143: 1655 | C143: =TOUT!D540 -> Name536 | D143: غ
A144: =IF(B144="","",MAX($A$4:A143)+1) -> 140 | B144: 1656 | C144: =TOUT!D541 -> Name537 | D144: غ
A145: =IF(B145="","",MAX($A$4:A144)+1) -> 141 | B145: 1657 | C145: =TOUT!D542 -> Name538 | D145: غ
A146: =IF(B146="","",MAX($A$4:A145)+1) -> 142 | B146: 1658 | C146: =TOUT!D543 -> Name539 | D146: غ
A147: =IF(B147="","",MAX($A$4:A146)+1) -> 143 | B147: 1659 | C147: =TOUT!D544 -> Name540 | D147: غ
A148: =IF(B148="","",MAX($A$4:A147)+1) -> 144 | B148: 1660 | C148: =TOUT!D545 -> Name541 | D148: غ
A149: =IF(B149="","",MAX($A$4:A148)+1) -> 145 | B149: 1661 | C149: =TOUT!D546 -> Name542 | D149: غ
A150: =IF(B150="","",MAX($A$4:A149)+1) -> 146 | B150: 1662 | C150: =TOUT!D547 -> Name543 | D150: غ
A151: =IF(B151="","",MAX($A$4:A150)+1) -> 147 | B151: 1663 | C151: =TOUT!D548 -> Name544 | D151: غ
A152: =IF(B152="","",MAX($A$4:A151)+1) -> 148 | B152: 1664 | C152: =TOUT!D549 -> Name545 | D152: غ
A153: =IF(B153="","",MAX($A$4:A152)+1) -> 149 | B153: 1665 | C153: =TOUT!D550 -> Name546 | D153: غ
A154: =IF(B154="","",MAX($A$4:A153)+1) -> 150 | B154: 1666 | C154: =TOUT!D551 -> Name547 | D154: غ
A155: =IF(B155="","",MAX($A$4:A154)+1) -> 151 | B155: 1667 | C155: =TOUT!D552 -> Name548 | D155: غ
A156: =IF(B156="","",MAX($A$4:A155)+1) -> 152 | B156: 1668 | C156: =TOUT!D553 -> Name549 | D156: غ
A157: =IF(B157="","",MAX($A$4:A156)+1) -> 153 | B157: 1669 | C157: =TOUT!D554 -> Name550 | D157: غ
A158: =IF(B158="","",MAX($A$4:A157)+1) -> 154 | B158: 1670 | C158: =TOUT!D555 -> Name551 | D158: غ
A159: =IF(B159="","",MAX($A$4:A158)+1) -> 155 | B159: 1671 | C159: =TOUT!D556 -> Name552 | D159: غ
A160: =IF(B160="","",MAX($A$4:A159)+1) -> 156 | B160: 1672 | C160: =TOUT!D557 -> Name553 | D160: غ
A161: =IF(B161="","",MAX($A$4:A160)+1) -> 157 | B161: 1673 | C161: =TOUT!D558 -> Name554 | D161: غ
A162: =IF(B162="","",MAX($A$4:A161)+1) -> 158 | B162: 1674 | C162: =TOUT!D559 -> Name555 | D162: غ
A163: =IF(B163="","",MAX($A$4:A162)+1) -> 159 | B163: 1675 | C163: =TOUT!D560 -> Name556 | D163: غ
A164: =IF(B164="","",MAX($A$4:A163)+1) -> 160 | B164: 1676 | C164: =TOUT!D561 -> Name557 | D164: غ
A165: =IF(B165="","",MAX($A$4:A164)+1) -> 161 | B165: 1677 | C165: =TOUT!D562 -> Name558 | D165: غ
A166: =IF(B166="","",MAX($A$4:A165)+1) -> 162 | B166: 1678 | C166: =TOUT!D563 -> Name559 | D166: غ
A167: =IF(B167="","",MAX($A$4:A166)+1) -> 163 | B167: 1679 | C167: =TOUT!D564 -> Name560 | D167: غ
A168: =IF(B168="","",MAX($A$4:A167)+1) -> 164 | B168: 1680 | C168: =TOUT!D565 -> Name561 | D168: غ
A169: =IF(B169="","",MAX($A$4:A168)+1) -> 165 | B169: 1681 | C169: =TOUT!D566 -> Name562 | D169: غ
A170: =IF(B170="","",MAX($A$4:A169)+1) -> 166 | B170: 1682 | C170: =TOUT!D567 -> Name563 | D170: غ
A171: =IF(B171="","",MAX($A$4:A170)+1) -> 167 | B171: 1683 | C171: =TOUT!D568 -> Name564 | D171: غ
A172: =IF(B172="","",MAX($A$4:A171)+1) -> 168 | B172: 1684 | C172: =TOUT!D569 -> Name565 | D172: غ
A173: =IF(B173="","",MAX($A$4:A172)+1) -> 169 | B173: 1685 | C173: =TOUT!D570 -> Name566 | D173: غ
A174: =IF(B174="","",MAX($A$4:A173)+1) -> 170 | B174: 1686 | C174: =TOUT!D571 -> Name567 | D174: غ
A175: =IF(B175="","",MAX($A$4:A174)+1) -> 171 | B175: 1687 | C175: =TOUT!D572 -> Name568 | D175: غ
A176: =IF(B176="","",MAX($A$4:A175)+1) -> 172 | B176: 1688 | C176: =TOUT!D573 -> Name569 | D176: غ
A177: =IF(B177="","",MAX($A$4:A176)+1) -> 173 | B177: 1689 | C177: =TOUT!D574 -> Name570 | D177: غ
A178: =IF(B178="","",MAX($A$4:A177)+1) -> 174 | B178: 1690 | C178: =TOUT!D575 -> Name571 | D178: غ
A179: =IF(B179="","",MAX($A$4:A178)+1) -> 175 | B179: 1691 | C179: =TOUT!D576 -> Name572 | D179: غ
A180: =IF(B180="","",MAX($A$4:A179)+1) -> 176 | B180: 1692 | C180: =TOUT!D577 -> Name573 | D180: غ
A181: =IF(B181="","",MAX($A$4:A180)+1) -> 177 | B181: 1693 | C181: =TOUT!D578 -> Name574 | D181: غ
A182: =IF(B182="","",MAX($A$4:A181)+1) -> 178 | B182: 1694 | C182: =TOUT!D579 -> Name575 | D182: غ
A183: =IF(B183="","",MAX($A$4:A182)+1) -> 179 | B183: 1695 | C183: =TOUT!D580 -> Name576 | D183: غ
A184: =IF(B184="","",MAX($A$4:A183)+1) -> 180 | B184: 1696 | C184: =TOUT!D581 -> Name577 | D184: غ
A185: =IF(B185="","",MAX($A$4:A184)+1) -> 181 | B185: 1697 | C185: =TOUT!D582 -> Name578 | D185: غ
A186: =IF(B186="","",MAX($A$4:A185)+1) -> 182 | B186: 1698 | C186: =TOUT!D583 -> Name579 | D186: غ
A187: =IF(B187="","",MAX($A$4:A186)+1) -> 183 | B187: 1699 | C187: =TOUT!D584 -> Name580 | D187: غ
A188: =IF(B188="","",MAX($A$4:A187)+1) -> 184 | B188: 1700 | C188: =TOUT!D585 -> Name581 | D188: غ
A189: =IF(B189="","",MAX($A$4:A188)+1) -> 185 | B189: 1701 | C189: =TOUT!D586 -> Name582 | D189: غ
A190: =IF(B190="","",MAX($A$4:A189)+1) -> 186 | B190: 1702 | C190: =TOUT!D587 -> Name583 | D190: غ
A191: =IF(B191="","",MAX($A$4:A190)+1) -> 187 | B191: 1703 | C191: =TOUT!D588 -> Name584 | D191: غ
A192: =IF(B192="","",MAX($A$4:A191)+1) -> 188 | B192: 1704 | C192: =TOUT!D589 -> Name585 | D192: غ
A193: =IF(B193="","",MAX($A$4:A192)+1) -> 189 | B193: 1705 | C193: =TOUT!D590 -> Name586 | D193: غ
A194: =IF(B194="","",MAX($A$4:A193)+1) -> 190 | B194: 1706 | C194: =TOUT!D591 -> Name587 | D194: غ
A195: =IF(B195="","",MAX($A$4:A194)+1) -> 191 | B195: 1707 | C195: =TOUT!D592 -> Name588 | D195: غ
A196: =IF(B196="","",MAX($A$4:A195)+1) -> 192 | B196: 1708 | C196: =TOUT!D593 -> Name589 | D196: غ
A197: =IF(B197="","",MAX($A$4:A196)+1) -> 193 | B197: 1709 | C197: =TOUT!D594 -> Name590 | D197: غ
A198: =IF(B198="","",MAX($A$4:A197)+1) -> 194 | B198: 1710 | C198: =TOUT!D595 -> Name591 | D198: غ
A199: =IF(B199="","",MAX($A$4:A198)+1) -> 195 | B199: 1711 | C199: =TOUT!D596 -> Name592 | D199: غ
A200: =IF(B200="","",MAX($A$4:A199)+1) -> 196 | B200: 1712 | C200: =TOUT!D597 -> Name593 | D200: غ
... 635 more rows

Sheet TOUT
B3: ت | C3: رقم الطالب | D3: اسم الطالب | J3: الثاني | O3: الثالث | T3: الرابع | Y3: الخامس | AD3: السادس | AI3: السابع | AN3: الثامن | AS3: عدد الغيابات
E4: 25 / 6 | F4: 26 / 6 | G4: 27 / 6 | H4: 28 / 6 | I4: 29 / 6 | J4: 2 / 7 | K4: 3 / 7 | L4: A | M4: 5 / 7 | N4: 6 / 7 | O4: 9 / 7 | P4: 10 / 7 | Q4: 11 / 7 | R4: 12 / 7 | S4: 13 / 7 | T4: 16 / 7 | U4: 17 / 7 | V4: 18 / 7 | W4: 19 / 7 | X4: 20 / 7 | Y4: 23 / 7 | Z4: 24 / 7 | AA4: 25 / 7 | AB4: 26 / 7 | AC4: 27 / 7 | AD4: 1 / 8 | AE4: 2 / 8 | AF4: 3 / 8 | AG4: 4 / 8 | AH4: 5 / 8 | AI4: 8 / 8 | AJ4: 9 / 8 | AK4: 10 / 8 | AL4: 11 / 8 | AM4: 12 / 8 | AN4: 15 / 8 | AO4: 16 / 8 | AP4: 17 / 8 | AQ4: 18 / 8 | AR4: 19 / 8
B5: 1 | C5: 1120 | D5: Name1 | G5: 1 | K5: 1 | L5: 1 | Q5: 1 | V5: 1 | Z5: 1
B6: 2 | C6: 1121 | D6: Name2
B7: 3 | C7: 1122 | D7: Name3 | G7: 9 | K7: 9 | L7: 9 | Q7: ق | V7: ق | Z7: ق
B8: 4 | C8: 1123 | D8: Name4 | G8: H | K8: H | L8: H | Q8: H | V8: H | Z8: H
B9: 5 | C9: 1124 | D9: Name5
B10: 6 | C10: 1125 | D10: Name6 | G10: غ | K10: غ | L10: غ | Q10: غ | V10: غ | Z10: غ
B11: 7 | C11: 1126 | D11: Name7 | G11: غ | K11: غ | L11: غ | Q11: غ | V11: غ | Z11: غ
B12: 8 | C12: 1127 | D12: Name8 | G12: غ | K12: غ | L12: غ | Q12: غ | V12: غ | Z12: غ
B13: 9 | C13: 1128 | D13: Name9 | G13: غ | K13: غ | L13: غ | Q13: غ | V13: غ | Z13: غ
B14: 10 | C14: 1129 | D14: Name10 | G14: غ | K14: غ | L14: غ | Q14: غ | V14: غ | Z14: غ
B15: 11 | C15: 1130 | D15: Name11 | G15: غ | K15: غ | L15: غ | Q15: غ | V15: غ | Z15: غ
B16: 12 | C16: 1131 | D16: Name12 | G16: غ | K16: غ | L16: غ | Q16: غ | V16: غ | Z16: غ
B17: 13 | C17: 1132 | D17: Name13 | G17: غ | K17: غ | L17: غ | Q17: غ | V17: غ | Z17: غ
B18: 14 | C18: 1133 | D18: Name14 | G18: غ | K18: غ | L18: غ | Q18: غ | V18: غ | Z18: غ
B19: 15 | C19: 1134 | D19: Name15 | G19: غ | K19: غ | L19: غ | Q19: غ | V19: غ | Z19: غ
B20: 16 | C20: 1135 | D20: Name16 | G20: غ | K20: غ | L20: غ | Q20: غ | V20: غ | Z20: غ
B21: 17 | C21: 1136 | D21: Name17 | G21: غ | K21: غ | L21: غ | Q21: غ | V21: غ | Z21: غ
B22: 18 | C22: 1137 | D22: Name18 | G22: غ | K22: غ | L22: غ | Q22: غ | V22: غ | Z22: غ
B23: 19 | C23: 1138 | D23: Name19 | G23: غ | K23: غ | L23: غ | Q23: غ | V23: غ | Z23: غ
B24: 20 | C24: 1139 | D24: Name20 | G24: غ | K24: غ | L24: غ | Q24: غ | V24: غ | Z24: غ
B25: 21 | C25: 1140 | D25: Name21 | G25: غ | K25: غ | L25: غ | Q25: غ | V25: غ | Z25: غ
B26: 22 | C26: 1141 | D26: Name22 | G26: غ | K26: غ | L26: غ | Q26: غ | V26: غ | Z26: غ
B27: 23 | C27: 1142 | D27: Name23 | G27: غ | K27: غ | L27: غ | Q27: غ | V27: غ | Z27: غ
B28: 24 | C28: 1143 | D28: Name24 | G28: غ | K28: غ | L28: غ | Q28: غ | V28: غ | Z28: غ
B29: 25 | C29: 1144 | D29: Name25 | G29: غ | K29: غ | L29: غ | Q29: غ | V29: غ | Z29: غ
B30: 26 | C30: 1145 | D30: Name26 | G30: غ | K30: غ | L30: غ | Q30: غ | V30: غ | Z30: غ
B31: 27 | C31: 1146 | D31: Name27 | G31: غ | K31: غ | L31: غ | Q31: غ | V31: غ | Z31: غ
B32: 28 | C32: 1147 | D32: Name28 | G32: غ | K32: غ | L32: غ | Q32: غ | V32: غ | Z32: غ
B33: 29 | C33: 1148 | D33: Name29 | G33: غ | K33: غ | L33: غ | Q33: غ | V33: غ | Z33: غ
B34: 30 | C34: 1149 | D34: Name30 | G34: غ | K34: غ | L34: غ | Q34: غ | V34: غ | Z34: غ
B35: 31 | C35: 1150 | D35: Name31 | G35: غ | K35: غ | L35: غ | Q35: غ | V35: غ | Z35: غ
B36: 32 | C36: 1151 | D36: Name32 | G36: غ | K36: غ | L36: غ | Q36: غ | V36: غ | Z36: غ
B37: 33 | C37: 1152 | D37: Name33 | G37: غ | K37: غ | L37: غ | Q37: غ | V37: غ | Z37: غ
B38: 34 | C38: 1153 | D38: Name34 | G38: غ | K38: غ | L38: غ | Q38: غ | V38: غ | Z38: غ
B39: 35 | C39: 1154 | D39: Name35 | G39: غ | K39: غ | L39: غ | Q39: غ | V39: غ | Z39: غ
B40: 36 | C40: 1155 | D40: Name36 | G40: غ | K40: غ | L40: غ | Q40: غ | V40: غ | Z40: غ
B41: 37 | C41: 1156 | D41: Name37 | G41: غ | K41: غ | L41: غ | Q41: غ | V41: غ | Z41: غ
B42: 38 | C42: 1157 | D42: Name38 | G42: غ | K42: غ | L42: غ | Q42: غ | V42: غ | Z42: غ
B43: 39 | C43: 1158 | D43: Name39 | G43: غ | K43: غ | L43: غ | Q43: غ | V43: غ | Z43: غ
B44: 40 | C44: 1159 | D44: Name40 | G44: غ | K44: غ | L44: غ | Q44: غ | V44: غ | Z44: غ
B45: 41 | C45: 1160 | D45: Name41 | G45: غ | K45: غ | L45: غ | Q45: غ | V45: غ | Z45: غ
B46: 42 | C46: 1161 | D46: Name42 | G46: غ | K46: غ | L46: غ | Q46: غ | V46: غ | Z46: غ
B47: 43 | C47: 1162 | D47: Name43 | G47: غ | K47: غ | L47: غ | Q47: غ | V47: غ | Z47: غ
B48: 44 | C48: 1163 | D48: Name44 | G48: غ | K48: غ | L48: غ | Q48: غ | V48: غ | Z48: غ
B49: 45 | C49: 1164 | D49: Name45 | G49: غ | K49: غ | L49: غ | Q49: غ | V49: غ | Z49: غ
B50: 46 | C50: 1165 | D50: Name46 | G50: غ | K50: غ | L50: غ | Q50: غ | V50: غ | Z50: غ
B51: 47 | C51: 1166 | D51: Name47 | G51: غ | K51: غ | L51: غ | Q51: غ | V51: غ | Z51: غ
B52: 48 | C52: 1167 | D52: Name48 | G52: غ | K52: غ | L52: غ | Q52: غ | V52: غ | Z52: غ
B53: 49 | C53: 1168 | D53: Name49 | G53: غ | K53: غ | L53: غ | Q53: غ | V53: غ | Z53: غ
B54: 50 | C54: 1169 | D54: Name50 | G54: غ | K54: غ | L54: غ | Q54: غ | V54: غ | Z54: غ
B55: 51 | C55: 1170 | D55: Name51 | G55: غ | K55: غ | L55: غ | Q55: غ | V55: غ | Z55: غ
B56: 52 | C56: 1171 | D56: Name52 | G56: غ | K56: غ | L56: غ | Q56: غ | V56: غ | Z56: غ
B57: 53 | C57: 1172 | D57: Name53 | G57: غ | K57: غ | L57: غ | Q57: غ | V57: غ | Z57: غ
B58: 54 | C58: 1173 | D58: Name54 | G58: غ | K58: غ | L58: غ | Q58: غ | V58: غ | Z58: غ
B59: 55 | C59: 1174 | D59: Name55 | G59: غ | K59: غ | L59: غ | Q59: غ | V59: غ | Z59: غ
B60: 56 | C60: 1175 | D60: Name56 | G60: غ | K60: غ | L60: غ | Q60: غ | V60: غ | Z60: غ
B61: 57 | C61: 1176 | D61: Name57 | G61: غ | K61: غ | L61: غ | Q61: غ | V61: غ | Z61: غ
B62: 58 | C62: 1177 | D62: Name58 | G62: غ | K62: غ | L62: غ | Q62: غ | V62: غ | Z62: غ
B63: 59 | C63: 1178 | D63: Name59 | G63: غ | K63: غ | L63: غ | Q63: غ | V63: غ | Z63: غ
B64: 60 | C64: 1179 | D64: Name60 | G64: غ | K64: غ | L64: غ | Q64: غ | V64: غ | Z64: غ
B65: 61 | C65: 1180 | D65: Name61 | G65: غ | K65: غ | L65: غ | Q65: غ | V65: غ | Z65: غ
B66: 62 | C66: 1181 | D66: Name62 | G66: غ | K66: غ | L66: غ | Q66: غ | V66: غ | Z66: غ
B67: 63 | C67: 1182 | D67: Name63 | G67: غ | K67: غ | L67: غ | Q67: غ | V67: غ | Z67: غ
B68: 64 | C68: 1183 | D68: Name64 | G68: غ | K68: غ | L68: غ | Q68: غ | V68: غ | Z68: غ
B69: 65 | C69: 1184 | D69: Name65 | G69: غ | K69: غ | L69: غ | Q69: غ | V69: غ | Z69: غ
B70: 66 | C70: 1185 | D70: Name66 | G70: غ | K70: غ | L70: غ | Q70: غ | V70: غ | Z70: غ
B71: 67 | C71: 1186 | D71: Name67 | G71: غ | K71: غ | L71: غ | Q71: غ | V71: غ | Z71: غ
B72: 68 | C72: 1187 | D72: Name68 | G72: غ | K72: غ | L72: غ | Q72: غ | V72: غ | Z72: غ
B73: 69 | C73: 1188 | D73: Name69 | G73: غ | K73: غ | L73: غ | Q73: غ | V73: غ | Z73: غ
B74: 70 | C74: 1189 | D74: Name70 | G74: غ | K74: غ | L74: غ | Q74: غ | V74: غ | Z74: غ
B75: 71 | C75: 1190 | D75: Name71 | G75: غ | K75: غ | L75: غ | Q75: غ | V75: غ | Z75: غ
B76: 72 | C76: 1191 | D76: Name72 | G76: غ | K76: غ | L76: غ | Q76: غ | V76: غ | Z76: غ
B77: 73 | C77: 1192 | D77: Name73 | G77: غ | K77: غ | L77: غ | Q77: غ | V77: غ | Z77: غ
B78: 74 | C78: 1193 | D78: Name74 | G78: غ | K78: غ | L78: غ | Q78: غ | V78: غ | Z78: غ
B79: 75 | C79: 1194 | D79: Name75 | G79: غ | K79: غ | L79: غ | Q79: غ | V79: غ | Z79: غ
B80: 76 | C80: 1195 | D80: Name76 | G80: غ | K80: غ | L80: غ | Q80: غ | V80: غ | Z80: غ
B81: 77 | C81: 1196 | D81: Name77 | G81: غ | K81: غ | L81: غ | Q81: غ | V81: غ | Z81: غ
B82: 78 | C82: 1197 | D82: Name78 | G82: غ | K82: غ | L82: غ | Q82: غ | V82: غ | Z82: غ
B83: 79 | C83: 1198 | D83: Name79 | G83: غ | K83: غ | L83: غ | Q83: غ | V83: غ | Z83: غ
B84: 80 | C84: 1199 | D84: Name80 | G84: غ | K84: غ | L84: غ | Q84: غ | V84: غ | Z84: غ
B85: 81 | C85: 1200 | D85: Name81 | G85: غ | K85: غ | L85: غ | Q85: غ | V85: غ | Z85: غ
B86: 82 | C86: 1201 | D86: Name82 | G86: غ | K86: غ | L86: غ | Q86: غ | V86: غ | Z86: غ
B87: 83 | C87: 1202 | D87: Name83 | G87: غ | K87: غ | L87: غ | Q87: غ | V87: غ | Z87: غ
B88: 84 | C88: 1203 | D88: Name84 | G88: غ | K88: غ | L88: غ | Q88: غ | V88: غ | Z88: غ
B89: 85 | C89: 1204 | D89: Name85 | G89: غ | K89: غ | L89: غ | Q89: غ | V89: غ | Z89: غ
B90: 86 | C90: 1205 | D90: Name86 | G90: غ | K90: غ | L90: غ | Q90: غ | V90: غ | Z90: غ
B91: 87 | C91: 1206 | D91: Name87 | G91: غ | K91: غ | L91: غ | Q91: غ | V91: غ | Z91: غ
B92: 88 | C92: 1207 | D92: Name88 | G92: غ | K92: غ | L92: غ | Q92: غ | V92: غ | Z92: غ
B93: 89 | C93: 1208 | D93: Name89 | G93: غ | K93: غ | L93: غ | Q93: غ | V93: غ | Z93: غ
B94: 90 | C94: 1209 | D94: Name90 | G94: غ | K94: غ | L94: غ | Q94: غ | V94: غ | Z94: غ
B95: 91 | C95: 1210 | D95: Name91 | G95: غ | K95: غ | L95: غ | Q95: غ | V95: غ | Z95: غ
B96: 92 | C96: 1211 | D96: Name92 | G96: غ | K96: غ | L96: غ | Q96: غ | V96: غ | Z96: غ
B97: 93 | C97: 1212 | D97: Name93 | G97: غ | K97: غ | L97: غ | Q97: غ | V97: غ | Z97: غ
B98: 94 | C98: 1213 | D98: Name94 | G98: غ | K98: غ | L98: غ | Q98: غ | V98: غ | Z98: غ
B99: 95 | C99: 1214 | D99: Name95 | G99: غ | K99: غ | L99: غ | Q99: غ | V99: غ | Z99: غ
B100: 96 | C100: 1215 | D100: Name96 | G100: غ | K100: غ | L100: غ | Q100: غ | V100: غ | Z100: غ
B101: 97 | C101: 1216 | D101: Name97
B102: 98 | C102: 1217 | D102: Name98
B103: 99 | C103: 1218 | D103: Name99
B104: 100 | C104: 1219 | D104: Name100
B105: 101 | C105: 1220 | D105: Name101
B106: 102 | C106: 1221 | D106: Name102
B107: 103 | C107: 1222 | D107: Name103
B108: 104 | C108: 1223 | D108: Name104
B109: 105 | C109: 1224 | D109: Name105
B110: 106 | C110: 1225 | D110: Name106
B111: 107 | C111: 1226 | D111: Name107
B112: 108 | C112: 1227 | D112: Name108
B113: 109 | C113: 1228 | D113: Name109
B114: 110 | C114: 1229 | D114: Name110
B115: 111 | C115: 1230 | D115: Name111
B116: 112 | C116: 1231 | D116: Name112
B117: 113 | C117: 1232 | D117: Name113
B118: 114 | C118: 1233 | D118: Name114
B119: 115 | C119: 1234 | D119: Name115
B120: 116 | C120: 1235 | D120: Name116
B121: 117 | C121: 1236 | D121: Name117
B122: 118 | C122: 1237 | D122: Name118
B123: 119 | C123: 1238 | D123: Name119
B124: 120 | C124: 1239 | D124: Name120
B125: 121 | C125: 1240 | D125: Name121
B126: 122 | C126: 1241 | D126: Name122
B127: 123 | C127: 1242 | D127: Name123
B128: 124 | C128: 1243 | D128: Name124
B129: 125 | C129: 1244 | D129: Name125
B130: 126 | C130: 1245 | D130: Name126
B131: 127 | C131: 1246 | D131: Name127
B132: 128 | C132: 1247 | D132: Name128
B133: 129 | C133: 1248 | D133: Name129
B134: 130 | C134: 1249 | D134: Name130
B135: 131 | C135: 1250 | D135: Name131
B136: 132 | C136: 1251 | D136: Name132
B137: 133 | C137: 1252 | D137: Name133
B138: 134 | C138: 1253 | D138: Name134
B139: 135 | C139: 1254 | D139: Name135
B140: 136 | C140: 1255 | D140: Name136
B141: 137 | C141: 1256 | D141: Name137
B142: 138 | C142: 1257 | D142: Name138
B143: 139 | C143: 1258 | D143: Name139
B144: 140 | C144: 1259 | D144: Name140
B145: 141 | C145: 1260 | D145: Name141
B146: 142 | C146: 1261 | D146: Name142
B147: 143 | C147: 1262 | D147: Name143
B148: 144 | C148: 1263 | D148: Name144
B149: 145 | C149: 1264 | D149: Name145
B150: 146 | C150: 1265 | D150: Name146
B151: 147 | C151: 1266 | D151: Name147
B152: 148 | C152: 1267 | D152: Name148
B153: 149 | C153: 1268 | D153: Name149
B154: 150 | C154: 1269 | D154: Name150
B155: 151 | C155: 1270 | D155: Name151
B156: 152 | C156: 1271 | D156: Name152
B157: 153 | C157: 1272 | D157: Name153
B158: 154 | C158: 1273 | D158: Name154
B159: 155 | C159: 1274 | D159: Name155
B160: 156 | C160: 1275 | D160: Name156
B161: 157 | C161: 1276 | D161: Name157
B162: 158 | C162: 1277 | D162: Name158
B163: 159 | C163: 1278 | D163: Name159
B164: 160 | C164: 1279 | D164: Name160
B165: 161 | C165: 1280 | D165: Name161
B166: 162 | C166: 1281 | D166: Name162
B167: 163 | C167: 1282 | D167: Name163
B168: 164 | C168: 1283 | D168: Name164
B169: 165 | C169: 1284 | D169: Name165
B170: 166 | C170: 1285 | D170: Name166
B171: 167 | C171: 1286 | D171: Name167
B172: 168 | C172: 1287 | D172: Name168
B173: 169 | C173: 1288 | D173: Name169
B174: 170 | C174: 1289 | D174: Name170
B175: 171 | C175: 1290 | D175: Name171
B176: 172 | C176: 1291 | D176: Name172
B177: 173 | C177: 1292 | D177: Name173
B178: 174 | C178: 1293 | D178: Name174
B179: 175 | C179: 1294 | D179: Name175
B180: 176 | C180: 1295 | D180: Name176
B181: 177 | C181: 1296 | D181: Name177
B182: 178 | C182: 1297 | D182: Name178
B183: 179 | C183: 1298 | D183: Name179
B184: 180 | C184: 1299 | D184: Name180
B185: 181 | C185: 1300 | D185: Name181
B186: 182 | C186: 1301 | D186: Name182
B187: 183 | C187: 1302 | D187: Name183
B188: 184 | C188: 1303 | D188: Name184
B189: 185 | C189: 1304 | D189: Name185
B190: 186 | C190: 1305 | D190: Name186
B191: 187 | C191: 1306 | D191: Name187
B192: 188 | C192: 1307 | D192: Name188
B193: 189 | C193: 1308 | D193: Name189
B194: 190 | C194: 1309 | D194: Name190
B195: 191 | C195: 1310 | D195: Name191
B196: 192 | C196: 1311 | D196: Name192
B197: 193 | C197: 1312 | D197: Name193
B198: 194 | C198: 1313 | D198: Name194
B199: 195 | C199: 1314 | D199: Name195
B200: 196 | C200: 1315 | D200: Name196
B201: 197 | C201: 1316 | D201: Name197
B202: 198 | C202: 1317 | D202: Name198
... 1029 more rows

Sheet 1

Sheet 2

Sheet 3

Sheet 4

Sheet 5

Sheet Feuil10
